[Event "Titled Tuesday Blitz March 28 Late 2023"]
[White "Skibbe, Willi"]
[Black "Kubatko, Ivan"]
[WhiteFideId "4682190"]
[BlackFideId "24111473"]
[WhiteElo "2309"]
[BlackElo "2285"]
[Result "1/2-1/2"]
[Round "07"]
[TimeControl "180+2"]
[Date "2023.03.28"]
[WhiteClock "0:00:26"]
[BlackClock "0:00:04"]

1. d4 {[%clk 0:03:00]}  d5 {[%clk 0:02:59]} 2. Nf3 {[%clk 0:03:00]}  c5 {[%clk 0:02:59]} 3. dxc5 {[%clk 0:02:59]}  e6 {[%clk 0:02:59]} 4. a3 {[%clk 0:02:58]}  Bxc5 {[%clk 0:02:58]} 5. b4 {[%clk 0:02:59]}  Bb6 {[%clk 0:02:51]} 6. Bb2 {[%clk 0:02:59]}  Nf6 {[%clk 0:02:52]} 7. e3 {[%clk 0:02:59]}  O-O {[%clk 0:02:51]} 8. c4 {[%clk 0:03:00]}  Nc6 {[%clk 0:02:49]} 9. Nbd2 {[%clk 0:02:58]}  d4 {[%clk 0:02:47]} 10. c5 {[%clk 0:02:56]}  dxe3 {[%clk 0:02:47]} 11. fxe3 {[%clk 0:02:54]}  Bc7 {[%clk 0:02:46]} 12. Qc2 {[%clk 0:02:53]}  e5 {[%clk 0:02:32]} 13. Bd3 {[%clk 0:02:51]}  Qe7 {[%clk 0:02:17]} 14. O-O {[%clk 0:02:47]}  Bg4 {[%clk 0:01:57]} 15. Ng5 {[%clk 0:02:04]}  h6 {[%clk 0:01:49]} 16. Rxf6 {[%clk 0:01:51]}  Qxf6 {[%clk 0:01:45]} 17. Nh7 {[%clk 0:01:50]}  Qh4 {[%clk 0:01:35]} 18. g3 {[%clk 0:01:46]}  Qh5 {[%clk 0:01:22]} 19. Nxf8 {[%clk 0:01:43]}  Rxf8 {[%clk 0:01:23]} 20. Rf1 {[%clk 0:01:42]}  Be2 {[%clk 0:00:52]} 21. Rf2 {[%clk 0:01:27]}  Bxd3 {[%clk 0:00:51]} 22. Qxd3 {[%clk 0:01:26]}  Rd8 {[%clk 0:00:46]} 23. Qe2 {[%clk 0:01:22]}  Qxe2 {[%clk 0:00:45]} 24. Rxe2 {[%clk 0:01:23]}  f5 {[%clk 0:00:42]} 25. Nc4 {[%clk 0:01:18]}  e4 {[%clk 0:00:33]} 26. Rd2 {[%clk 0:01:15]}  Rxd2 {[%clk 0:00:32]} 27. Nxd2 {[%clk 0:01:16]}  Be5 {[%clk 0:00:14]} 28. Nc4 {[%clk 0:01:15]}  Bxb2 {[%clk 0:00:14]} 29. Nxb2 {[%clk 0:01:15]}  Ne5 {[%clk 0:00:14]} 30. h4 {[%clk 0:01:05]}  g6 {[%clk 0:00:13]} 31. Kf2 {[%clk 0:01:05]}  Kf7 {[%clk 0:00:13]} 32. Ke2 {[%clk 0:01:01]}  Ke6 {[%clk 0:00:14]} 33. Kd2 {[%clk 0:01:01]}  g5 {[%clk 0:00:13]} 34. hxg5 {[%clk 0:01:01]}  hxg5 {[%clk 0:00:13]} 35. Kc3 {[%clk 0:01:00]}  Ng4 {[%clk 0:00:10]} 36. Kd4 {[%clk 0:00:59]}  Nf2 {[%clk 0:00:09]} 37. b5 {[%clk 0:00:50]}  Ng4 {[%clk 0:00:06]} 38. Nc4 {[%clk 0:00:50]}  Nf6 {[%clk 0:00:05]} 39. a4 {[%clk 0:00:44]}  Nd5 {[%clk 0:00:05]} 40. a5 {[%clk 0:00:43]}  Nb4 {[%clk 0:00:06]} 41. Nb2 {[%clk 0:00:39]}  Nc2+ {[%clk 0:00:06]} 42. Kc3 {[%clk 0:00:37]}  Nxe3 {[%clk 0:00:06]} 43. c6 {[%clk 0:00:37]}  bxc6 {[%clk 0:00:06]} 44. b6 {[%clk 0:00:37]}  axb6 {[%clk 0:00:07]} 45. a6 {[%clk 0:00:38]}  Nd5+ {[%clk 0:00:07]} 46. Kc4 {[%clk 0:00:37]}  Nc7 {[%clk 0:00:08]} 47. a7 {[%clk 0:00:38]}  f4 {[%clk 0:00:08]} 48. gxf4 {[%clk 0:00:37]}  gxf4 {[%clk 0:00:09]} 49. Kd4 {[%clk 0:00:38]}  Kf5 {[%clk 0:00:09]} 50. Nc4 {[%clk 0:00:38]}  b5 {[%clk 0:00:10]} 51. Nd6+ {[%clk 0:00:38]}  Kg4 {[%clk 0:00:06]} 52. Nxe4 {[%clk 0:00:38]}  f3 {[%clk 0:00:06]} 53. Ke3 {[%clk 0:00:39]}  b4 {[%clk 0:00:05]} 54. Nf2+ {[%clk 0:00:38]}  Kg3 {[%clk 0:00:06]} 55. Nd3 {[%clk 0:00:36]}  b3 {[%clk 0:00:05]} 56. Kd2 {[%clk 0:00:30]}  f2 {[%clk 0:00:04]} 57. Nxf2 {[%clk 0:00:29]}  Kxf2 {[%clk 0:00:05]} 58. Kc3 {[%clk 0:00:30]}  Ke3 {[%clk 0:00:06]} 59. Kxb3 {[%clk 0:00:31]}  Kd4 {[%clk 0:00:06]} 60. Kb4 {[%clk 0:00:31]}  c5+ {[%clk 0:00:07]} 61. Ka5 {[%clk 0:00:32]}  c4 {[%clk 0:00:07]} 62. Kb6 {[%clk 0:00:32]}  Nd5+ {[%clk 0:00:07]} 63. Kb7 {[%clk 0:00:32]}  c3 {[%clk 0:00:06]} 64. a8=Q {[%clk 0:00:33]}  c2 {[%clk 0:00:04]} 65. Qa1+ {[%clk 0:00:34]}  Nc3 {[%clk 0:00:04]} 66. Kc6 {[%clk 0:00:32]}  Kd3 {[%clk 0:00:04]} 67. Kc5 {[%clk 0:00:29]}  Ne2 {[%clk 0:00:03]} 68. Qa3+ {[%clk 0:00:28]}  Kd2 {[%clk 0:00:03]} 69. Qb4+ {[%clk 0:00:28]}  Kd3 {[%clk 0:00:03]} 70. Qc4+ {[%clk 0:00:28]}  Kd2 {[%clk 0:00:03]} 71. Qd5+ {[%clk 0:00:28]}  Ke1 {[%clk 0:00:03]} 72. Qg5 {[%clk 0:00:26]}  c1=Q+ {[%clk 0:00:03]} 73. Qxc1+ {[%clk 0:00:26]}  Nxc1 {[%clk 0:00:04]} 1/2-1/2


[Site "https://www.chess.com"]

[Event "Titled Tuesday Blitz March 28 Late 2023"]
[White "Sarkar, Justin"]
[Black "Zavortink, Matt"]
[WhiteFideId "2010011"]
[BlackFideId "2034263"]
[WhiteElo "2189"]
[BlackElo "2374"]
[Result "1-0"]
[Round "07"]
[TimeControl "180+2"]
[Date "2023.03.28"]
[WhiteClock "0:00:03"]
[BlackClock "0:00:13"]

1. e4 {[%clk 0:02:54]}  e6 {[%clk 0:02:59]} 2. d4 {[%clk 0:02:53]}  d5 {[%clk 0:03:00]} 3. Nd2 {[%clk 0:02:53]}  c5 {[%clk 0:02:59]} 4. dxc5 {[%clk 0:02:42]}  Nf6 {[%clk 0:02:55]} 5. exd5 {[%clk 0:02:18]}  Qxd5 {[%clk 0:02:54]} 6. Ngf3 {[%clk 0:02:10]}  Qxc5 {[%clk 0:02:53]} 7. Bd3 {[%clk 0:02:07]}  Nbd7 {[%clk 0:02:52]} 8. O-O {[%clk 0:02:03]}  Qc7 {[%clk 0:02:50]} 9. a4 {[%clk 0:01:49]}  Nc5 {[%clk 0:02:45]} 10. Bb5+ {[%clk 0:01:42]}  Bd7 {[%clk 0:02:45]} 11. Qe2 {[%clk 0:01:37]}  a6 {[%clk 0:02:13]} 12. Bxd7+ {[%clk 0:01:33]}  Ncxd7 {[%clk 0:02:13]} 13. Nc4 {[%clk 0:01:26]}  Be7 {[%clk 0:02:05]} 14. a5 {[%clk 0:01:22]}  O-O {[%clk 0:02:04]} 15. b3 {[%clk 0:01:19]}  Nd5 {[%clk 0:01:56]} 16. Bb2 {[%clk 0:01:17]}  Bf6 {[%clk 0:01:54]} 17. Bxf6 {[%clk 0:01:15]}  N7xf6 {[%clk 0:01:55]} 18. Nfe5 {[%clk 0:01:13]}  Rfd8 {[%clk 0:01:50]} 19. g3 {[%clk 0:01:06]}  Qc5 {[%clk 0:01:42]} 20. Rfd1 {[%clk 0:00:56]}  Nc3 {[%clk 0:01:38]} 21. Rxd8+ {[%clk 0:00:51]}  Rxd8 {[%clk 0:01:39]} 22. Qe3 {[%clk 0:00:45]}  Qxe3 {[%clk 0:01:26]} 23. Nxe3 {[%clk 0:00:45]}  Rd2 {[%clk 0:01:10]} 24. Nf3 {[%clk 0:00:33]}  Re2 {[%clk 0:01:02]} 25. Nd4 {[%clk 0:00:27]}  Rd2 {[%clk 0:01:02]} 26. Nf3 {[%clk 0:00:27]}  Rd8 {[%clk 0:01:00]} 27. Kf1 {[%clk 0:00:26]}  Nfe4 {[%clk 0:00:56]} 28. Ke1 {[%clk 0:00:21]}  f6 {[%clk 0:00:55]} 29. h4 {[%clk 0:00:15]}  Kf7 {[%clk 0:00:54]} 30. Nc4 {[%clk 0:00:13]}  e5 {[%clk 0:00:50]} 31. Nfd2 {[%clk 0:00:11]}  Ke6 {[%clk 0:00:35]} 32. Nxe4 {[%clk 0:00:10]}  Nxe4 {[%clk 0:00:36]} 33. Ke2 {[%clk 0:00:09]}  Nc3+ {[%clk 0:00:34]} 34. Ke3 {[%clk 0:00:09]}  Nd5+ {[%clk 0:00:32]} 35. Ke2 {[%clk 0:00:09]}  Rc8 {[%clk 0:00:31]} 36. Ke1 {[%clk 0:00:08]}  g6 {[%clk 0:00:31]} 37. Rd1 {[%clk 0:00:07]}  f5 {[%clk 0:00:29]} 38. Rxd5 {[%clk 0:00:07]}  Rc6 {[%clk 0:00:16]} 39. Rxe5+ {[%clk 0:00:06]}  Kf6 {[%clk 0:00:16]} 40. f4 {[%clk 0:00:06]}  h6 {[%clk 0:00:16]} 41. Ke2 {[%clk 0:00:06]}  Rc7 {[%clk 0:00:16]} 42. Ke3 {[%clk 0:00:06]}  Rd7 {[%clk 0:00:16]} 43. Nb6 {[%clk 0:00:05]}  Rd1 {[%clk 0:00:16]} 44. Nd5+ {[%clk 0:00:05]}  Kf7 {[%clk 0:00:16]} 45. Re7+ {[%clk 0:00:04]}  Kf8 {[%clk 0:00:17]} 46. Rd7 {[%clk 0:00:04]}  Re1+ {[%clk 0:00:16]} 47. Kd4 {[%clk 0:00:04]}  Rg1 {[%clk 0:00:16]} 48. Ke5 {[%clk 0:00:04]}  Rxg3 {[%clk 0:00:15]} 49. Kf6 {[%clk 0:00:04]}  Ke8 {[%clk 0:00:16]} 50. Rxb7 {[%clk 0:00:04]}  g5 {[%clk 0:00:15]} 51. Ke6 {[%clk 0:00:04]}  Kd8 {[%clk 0:00:13]} 52. Rb8# {[%clk 0:00:03]} 1-0


[Site "https://www.chess.com"]

[Event "Titled Tuesday Blitz March 28 Late 2023"]
[White "Rian, Kapriaga"]
[Black "KSho99"]
[WhiteFideId "7103263"]
[WhiteElo "2361"]
[BlackElo "2148"]
[Result "1-0"]
[Round "07"]
[TimeControl "180+2"]
[Date "2023.03.28"]
[WhiteClock "0:00:36"]
[BlackClock "0:00:02"]

1. d4 {[%clk 0:03:00]}  d5 {[%clk 0:02:59]} 2. Nf3 {[%clk 0:03:00]}  Nf6 {[%clk 0:02:58]} 3. Bf4 {[%clk 0:03:00]}  e6 {[%clk 0:02:54]} 4. e3 {[%clk 0:03:00]}  c5 {[%clk 0:02:55]} 5. c3 {[%clk 0:02:58]}  Bd6 {[%clk 0:02:55]} 6. Ne5 {[%clk 0:02:57]}  Qc7 {[%clk 0:02:48]} 7. Nd2 {[%clk 0:02:49]}  Nbd7 {[%clk 0:02:46]} 8. Ndf3 {[%clk 0:02:46]}  Ne4 {[%clk 0:02:38]} 9. Bd3 {[%clk 0:02:44]}  f6 {[%clk 0:02:20]} 10. Nxd7 {[%clk 0:02:42]}  Bxd7 {[%clk 0:02:04]} 11. Bxd6 {[%clk 0:02:39]}  Nxd6 {[%clk 0:01:55]} 12. O-O {[%clk 0:02:37]}  O-O {[%clk 0:01:53]} 13. b4 {[%clk 0:02:24]}  cxb4 {[%clk 0:01:41]} 14. cxb4 {[%clk 0:02:23]}  Bb5 {[%clk 0:01:40]} 15. Rc1 {[%clk 0:02:16]}  Qb6 {[%clk 0:01:25]} 16. a3 {[%clk 0:02:06]}  Rac8 {[%clk 0:01:11]} 17. Qe2 {[%clk 0:02:02]}  Bxd3 {[%clk 0:01:09]} 18. Qxd3 {[%clk 0:02:01]}  Rc4 {[%clk 0:01:07]} 19. Nd2 {[%clk 0:01:59]}  Rxc1 {[%clk 0:01:01]} 20. Rxc1 {[%clk 0:01:59]}  Rc8 {[%clk 0:00:59]} 21. Rc5 {[%clk 0:01:57]}  Rc6 {[%clk 0:00:52]} 22. h4 {[%clk 0:01:42]}  Qc7 {[%clk 0:00:38]} 23. e4 {[%clk 0:01:42]}  Rxc5 {[%clk 0:00:28]} 24. dxc5 {[%clk 0:01:39]}  Nxe4 {[%clk 0:00:28]} 25. Nxe4 {[%clk 0:01:39]}  dxe4 {[%clk 0:00:28]} 26. Qxe4 {[%clk 0:01:39]}  Qc6 {[%clk 0:00:26]} 27. Qc4 {[%clk 0:01:30]}  Qd5 {[%clk 0:00:20]} 28. Qxd5 {[%clk 0:01:22]}  exd5 {[%clk 0:00:21]} 29. Kf1 {[%clk 0:01:22]}  Kf7 {[%clk 0:00:21]} 30. Ke2 {[%clk 0:01:22]}  Ke6 {[%clk 0:00:21]} 31. Ke3 {[%clk 0:01:20]}  Ke5 {[%clk 0:00:18]} 32. f4+ {[%clk 0:01:20]}  Kf5 {[%clk 0:00:19]} 33. b5 {[%clk 0:01:03]}  h5 {[%clk 0:00:13]} 34. a4 {[%clk 0:00:52]}  Ke6 {[%clk 0:00:07]} 35. Kd4 {[%clk 0:00:43]}  f5 {[%clk 0:00:05]} 36. g3 {[%clk 0:00:40]}  g6 {[%clk 0:00:02]} 37. a5 {[%clk 0:00:40]}  a6 {[%clk 0:00:02]} 38. c6 {[%clk 0:00:38]}  bxc6 {[%clk 0:00:01]} 39. bxa6 {[%clk 0:00:37]}  Kd6 {[%clk 0:00:02]} 40. a7 {[%clk 0:00:36]} 1-0


[Site "https://www.chess.com"]

[Event "Titled Tuesday Blitz March 28 Late 2023"]
[White "Ozalp, Burak"]
[Black "Hartikainen, Jarmo"]
[WhiteFideId "6314210"]
[BlackFideId "503134"]
[WhiteElo "2106"]
[BlackElo "2143"]
[Result "0-1"]
[Round "07"]
[TimeControl "180+2"]
[Date "2023.03.28"]
[WhiteClock "0:00:01"]
[BlackClock "0:00:03"]

1. Nf3 {[%clk 0:03:00]}  Nf6 {[%clk 0:02:58]} 2. g3 {[%clk 0:03:00]}  g6 {[%clk 0:02:58]} 3. Bg2 {[%clk 0:03:01]}  Bg7 {[%clk 0:02:59]} 4. O-O {[%clk 0:03:02]}  O-O {[%clk 0:03:00]} 5. c4 {[%clk 0:03:03]}  c5 {[%clk 0:03:00]} 6. Nc3 {[%clk 0:03:02]}  Nc6 {[%clk 0:02:59]} 7. Rb1 {[%clk 0:02:59]}  d5 {[%clk 0:02:53]} 8. cxd5 {[%clk 0:02:56]}  Nxd5 {[%clk 0:02:53]} 9. Nxd5 {[%clk 0:02:24]}  Qxd5 {[%clk 0:02:51]} 10. d3 {[%clk 0:02:21]}  Qxa2 {[%clk 0:02:47]} 11. Be3 {[%clk 0:02:19]}  Nd4 {[%clk 0:02:36]} 12. Nd2 {[%clk 0:01:49]}  Qe6 {[%clk 0:02:18]} 13. Ne4 {[%clk 0:01:48]}  Qb6 {[%clk 0:02:06]} 14. Rc1 {[%clk 0:00:57]}  Qxb2 {[%clk 0:01:53]} 15. Re1 {[%clk 0:00:58]}  Qb3 {[%clk 0:01:14]} 16. Qd2 {[%clk 0:00:47]}  Qb4 {[%clk 0:01:00]} 17. Nxc5 {[%clk 0:00:36]}  Qxd2 {[%clk 0:00:56]} 18. Bxd2 {[%clk 0:00:37]}  Nc6 {[%clk 0:00:52]} 19. Nxb7 {[%clk 0:00:26]}  Bxb7 {[%clk 0:00:51]} 20. Bxc6 {[%clk 0:00:27]}  Bxc6 {[%clk 0:00:48]} 21. Rxc6 {[%clk 0:00:27]}  Rfc8 {[%clk 0:00:46]} 22. Rxc8+ {[%clk 0:00:23]}  Rxc8 {[%clk 0:00:45]} 23. Be3 {[%clk 0:00:20]}  a5 {[%clk 0:00:41]} 24. d4 {[%clk 0:00:16]}  Rd8 {[%clk 0:00:30]} 25. Ra1 {[%clk 0:00:15]}  Ra8 {[%clk 0:00:19]} 26. Ra4 {[%clk 0:00:16]}  e6 {[%clk 0:00:14]} 27. f4 {[%clk 0:00:14]}  Bf6 {[%clk 0:00:14]} 28. Bd2 {[%clk 0:00:13]}  Kg7 {[%clk 0:00:11]} 29. Kf2 {[%clk 0:00:12]}  Bd8 {[%clk 0:00:10]} 30. e4 {[%clk 0:00:12]}  f5 {[%clk 0:00:08]} 31. Ke3 {[%clk 0:00:09]}  Bb6 {[%clk 0:00:08]} 32. Kd3 {[%clk 0:00:09]}  Kf7 {[%clk 0:00:07]} 33. Be3 {[%clk 0:00:06]}  Ke7 {[%clk 0:00:05]} 34. Bd2 {[%clk 0:00:06]}  Kd7 {[%clk 0:00:05]} 35. exf5 {[%clk 0:00:04]}  gxf5 {[%clk 0:00:04]} 36. Kc4 {[%clk 0:00:04]}  Kc6 {[%clk 0:00:04]} 37. Be3 {[%clk 0:00:03]}  Rd8 {[%clk 0:00:03]} 38. Kd3 {[%clk 0:00:01]}  Rd5 {[%clk 0:00:03]} 0-1


[Site "https://www.chess.com"]

[Event "Titled Tuesday Blitz March 28 Late 2023"]
[White "Vemparala, Nikash"]
[Black "dorpato"]
[WhiteFideId "30960967"]
[WhiteElo "2023"]
[BlackElo "2042"]
[Result "0-1"]
[Round "07"]
[TimeControl "180+2"]
[Date "2023.03.28"]
[WhiteClock "0:00:06"]
[BlackClock "0:00:31"]

1. e4 {[%clk 0:03:00]}  c5 {[%clk 0:02:59]} 2. Nf3 {[%clk 0:03:00]}  g6 {[%clk 0:02:59]} 3. c3 {[%clk 0:02:59]}  Bg7 {[%clk 0:02:59]} 4. d4 {[%clk 0:02:59]}  cxd4 {[%clk 0:03:00]} 5. cxd4 {[%clk 0:03:00]}  d5 {[%clk 0:03:00]} 6. e5 {[%clk 0:02:54]}  Nc6 {[%clk 0:02:59]} 7. Nc3 {[%clk 0:02:53]}  Bg4 {[%clk 0:02:59]} 8. Be3 {[%clk 0:02:52]}  Bxf3 {[%clk 0:02:54]} 9. Qxf3 {[%clk 0:02:52]}  e6 {[%clk 0:02:54]} 10. Nb5 {[%clk 0:02:43]}  Bf8 {[%clk 0:02:50]} 11. Be2 {[%clk 0:02:22]}  a6 {[%clk 0:02:49]} 12. Nc3 {[%clk 0:02:21]}  Bg7 {[%clk 0:02:47]} 13. O-O {[%clk 0:02:21]}  Nge7 {[%clk 0:02:47]} 14. Rac1 {[%clk 0:02:19]}  O-O {[%clk 0:02:47]} 15. h4 {[%clk 0:02:12]}  Nf5 {[%clk 0:02:40]} 16. Rfd1 {[%clk 0:01:47]}  Qxh4 {[%clk 0:02:24]} 17. g4 {[%clk 0:01:45]}  Nxe3 {[%clk 0:02:19]} 18. fxe3 {[%clk 0:01:39]}  f6 {[%clk 0:02:17]} 19. exf6 {[%clk 0:01:27]}  Bxf6 {[%clk 0:02:12]} 20. Qg2 {[%clk 0:01:25]}  Bg5 {[%clk 0:01:59]} 21. Rd3 {[%clk 0:01:13]}  Nxd4 {[%clk 0:01:44]} 22. Rcd1 {[%clk 0:00:23]}  Nxe2+ {[%clk 0:01:39]} 23. Nxe2 {[%clk 0:00:24]}  Rf7 {[%clk 0:01:29]} 24. Nd4 {[%clk 0:00:20]}  Rf6 {[%clk 0:01:10]} 25. Nxe6 {[%clk 0:00:14]}  Rxe6 {[%clk 0:01:00]} 26. Qxd5 {[%clk 0:00:14]}  Re8 {[%clk 0:00:59]} 27. e4 {[%clk 0:00:13]}  Qxg4+ {[%clk 0:00:58]} 28. Kh1 {[%clk 0:00:12]}  Bf4 {[%clk 0:00:53]} 29. Rg1 {[%clk 0:00:11]}  Qh4+ {[%clk 0:00:50]} 30. Kg2 {[%clk 0:00:11]}  Qh2+ {[%clk 0:00:49]} 31. Kf1 {[%clk 0:00:11]}  Kg7 {[%clk 0:00:44]} 32. Qd7+ {[%clk 0:00:10]}  R8e7 {[%clk 0:00:44]} 33. Qd4+ {[%clk 0:00:10]}  Be5 {[%clk 0:00:43]} 34. Qc4 {[%clk 0:00:09]}  Qf4+ {[%clk 0:00:42]} 35. Ke1 {[%clk 0:00:09]}  Bf6 {[%clk 0:00:38]} 36. Kd1 {[%clk 0:00:07]}  Rxe4 {[%clk 0:00:37]} 37. Qc8 {[%clk 0:00:08]}  Rd4 {[%clk 0:00:35]} 38. Rg3 {[%clk 0:00:06]}  Qxg3 {[%clk 0:00:34]} 39. Rxd4 {[%clk 0:00:04]}  Bxd4 {[%clk 0:00:33]} 40. Qc4 {[%clk 0:00:03]}  Qe1+ {[%clk 0:00:32]} 41. Kc2 {[%clk 0:00:03]}  Qf2+ {[%clk 0:00:31]} 42. Kb3 {[%clk 0:00:01]}  Qe3+ {[%clk 0:00:31]} 43. Kb4 {[%clk 0:00:01]}  Bc5+ {[%clk 0:00:30]} 44. Qxc5 {[%clk 0:00:01]}  Qxc5+ {[%clk 0:00:30]} 45. Kxc5 {[%clk 0:00:02]}  Re2 {[%clk 0:00:30]} 46. Kb6 {[%clk 0:00:03]}  Rxb2+ {[%clk 0:00:31]} 47. Ka7 {[%clk 0:00:03]}  Rxa2 {[%clk 0:00:31]} 48. Kxb7 {[%clk 0:00:04]}  Rb2+ {[%clk 0:00:32]} 49. Kc7 {[%clk 0:00:05]}  a5 {[%clk 0:00:31]} 50. Kd7 {[%clk 0:00:06]} 0-1


[Site "https://www.chess.com"]

[Event "Titled Tuesday Blitz March 28 Late 2023"]
[White "Adel, Sara"]
[Black "Gamboa, Juan Pablo"]
[WhiteFideId "10616764"]
[BlackFideId "105180"]
[WhiteElo "1982"]
[BlackElo "1866"]
[Result "1-0"]
[Round "07"]
[TimeControl "180+2"]
[Date "2023.03.28"]
[WhiteClock "0:02:22"]
[BlackClock "0:02:11"]

1. e4 {[%clk 0:03:00]}  e6 {[%clk 0:03:00]} 2. d4 {[%clk 0:02:59]}  d5 {[%clk 0:03:01]} 3. Nd2 {[%clk 0:03:00]}  c5 {[%clk 0:03:00]} 4. dxc5 {[%clk 0:02:59]}  Bxc5 {[%clk 0:02:59]} 5. Ngf3 {[%clk 0:03:00]}  dxe4 {[%clk 0:02:59]} 6. Nxe4 {[%clk 0:03:01]}  Qxd1+ {[%clk 0:02:59]} 7. Kxd1 {[%clk 0:03:01]}  Be7 {[%clk 0:02:59]} 8. Bf4 {[%clk 0:03:02]}  Nc6 {[%clk 0:02:58]} 9. Bb5 {[%clk 0:03:02]}  Bd7 {[%clk 0:02:58]} 10. Ke2 {[%clk 0:03:02]}  Nf6 {[%clk 0:02:58]} 11. Nc3 {[%clk 0:02:56]}  O-O {[%clk 0:02:52]} 12. Rhd1 {[%clk 0:02:56]}  a6 {[%clk 0:02:50]} 13. Bxc6 {[%clk 0:02:52]}  Bxc6 {[%clk 0:02:50]} 14. Rd2 {[%clk 0:02:47]}  Rfd8 {[%clk 0:02:45]} 15. Rad1 {[%clk 0:02:47]}  Rxd2+ {[%clk 0:02:42]} 16. Rxd2 {[%clk 0:02:48]}  Bb4 {[%clk 0:02:39]} 17. Be5 {[%clk 0:02:40]}  Nd5 {[%clk 0:02:33]} 18. Nxd5 {[%clk 0:02:35]}  Bxd2 {[%clk 0:02:30]} 19. Ne7+ {[%clk 0:02:35]}  Kf8 {[%clk 0:02:30]} 20. Nxc6 {[%clk 0:02:35]}  bxc6 {[%clk 0:02:28]} 21. Nxd2 {[%clk 0:02:34]}  f6 {[%clk 0:02:29]} 22. Bd6+ {[%clk 0:02:33]}  Kf7 {[%clk 0:02:29]} 23. Bc5 {[%clk 0:02:34]}  Rb8 {[%clk 0:02:28]} 24. b3 {[%clk 0:02:34]}  Rb5 {[%clk 0:02:28]} 25. Ne4 {[%clk 0:02:33]}  Ra5 {[%clk 0:02:26]} 26. a4 {[%clk 0:02:31]}  f5 {[%clk 0:02:26]} 27. Nd6+ {[%clk 0:02:27]}  Kg6 {[%clk 0:02:15]} 28. Nb7 {[%clk 0:02:28]}  Rxc5 {[%clk 0:02:11]} 29. Nxc5 {[%clk 0:02:29]}  e5 {[%clk 0:02:11]} 30. Ke3 {[%clk 0:02:28]}  e4 {[%clk 0:02:10]} 31. Nxa6 {[%clk 0:02:28]}  Kf6 {[%clk 0:02:11]} 32. Nb4 {[%clk 0:02:27]}  g5 {[%clk 0:02:11]} 33. g3 {[%clk 0:02:27]}  c5 {[%clk 0:02:10]} 34. Na6 {[%clk 0:02:26]}  Ke5 {[%clk 0:02:11]} 35. Nxc5 {[%clk 0:02:26]}  f4+ {[%clk 0:02:12]} 36. gxf4+ {[%clk 0:02:25]}  gxf4+ {[%clk 0:02:12]} 37. Ke2 {[%clk 0:02:26]}  Kd4 {[%clk 0:02:12]} 38. Ne6+ {[%clk 0:02:25]}  Ke5 {[%clk 0:02:12]} 39. Nxf4 {[%clk 0:02:24]}  Kxf4 {[%clk 0:02:12]} 40. a5 {[%clk 0:02:25]}  Ke5 {[%clk 0:02:12]} 41. a6 {[%clk 0:02:22]}  Kd6 {[%clk 0:02:11]} 42. a7 {[%clk 0:02:22]} 1-0


[Site "https://www.chess.com"]

[Event "Titled Tuesday Blitz March 28 Late 2023"]
[White "Burke, Paul"]
[Black "Kornyukov, Alexey"]
[WhiteFideId "2605767"]
[BlackFideId "4150457"]
[WhiteElo "1952"]
[BlackElo "2352"]
[Result "0-1"]
[Round "07"]
[TimeControl "180+2"]
[Date "2023.03.28"]
[WhiteClock "0:00:32"]
[BlackClock "0:00:06"]

1. e4 {[%clk 0:03:00]}  c5 {[%clk 0:02:59]} 2. d4 {[%clk 0:02:59]}  cxd4 {[%clk 0:02:57]} 3. c3 {[%clk 0:02:59]}  Nf6 {[%clk 0:02:56]} 4. Bd3 {[%clk 0:02:58]}  Nc6 {[%clk 0:02:43]} 5. Nf3 {[%clk 0:02:56]}  e5 {[%clk 0:02:37]} 6. Bc4 {[%clk 0:02:53]}  h6 {[%clk 0:01:37]} 7. O-O {[%clk 0:02:52]}  Be7 {[%clk 0:01:20]} 8. cxd4 {[%clk 0:02:50]}  Nxe4 {[%clk 0:01:09]} 9. dxe5 {[%clk 0:02:49]}  d5 {[%clk 0:01:06]} 10. exd6 {[%clk 0:02:47]}  Nxd6 {[%clk 0:01:05]} 11. Be2 {[%clk 0:02:41]}  O-O {[%clk 0:01:05]} 12. Nc3 {[%clk 0:02:40]}  Be6 {[%clk 0:00:58]} 13. Bf4 {[%clk 0:02:39]}  Nf5 {[%clk 0:00:56]} 14. h3 {[%clk 0:02:31]}  Nfd4 {[%clk 0:00:55]} 15. Nxd4 {[%clk 0:02:29]}  Nxd4 {[%clk 0:00:55]} 16. Bf3 {[%clk 0:02:26]}  Nxf3+ {[%clk 0:00:50]} 17. Qxf3 {[%clk 0:02:25]}  Qb6 {[%clk 0:00:43]} 18. Qg3 {[%clk 0:02:16]}  Kh7 {[%clk 0:00:22]} 19. b3 {[%clk 0:02:01]}  Rac8 {[%clk 0:00:22]} 20. Ne4 {[%clk 0:01:55]}  Bf5 {[%clk 0:00:20]} 21. Nd6 {[%clk 0:01:50]}  Bxd6 {[%clk 0:00:20]} 22. Bxd6 {[%clk 0:01:50]}  Rfe8 {[%clk 0:00:20]} 23. Be5 {[%clk 0:01:49]}  f6 {[%clk 0:00:19]} 24. Bf4 {[%clk 0:01:41]}  Rc2 {[%clk 0:00:19]} 25. Be3 {[%clk 0:01:40]}  Qa5 {[%clk 0:00:17]} 26. Qf4 {[%clk 0:01:29]}  Be4 {[%clk 0:00:16]} 27. a4 {[%clk 0:01:09]}  a6 {[%clk 0:00:16]} 28. Qd6 {[%clk 0:01:02]}  Bc6 {[%clk 0:00:15]} 29. b4 {[%clk 0:01:00]}  Qf5 {[%clk 0:00:13]} 30. Qg3 {[%clk 0:00:56]}  Re4 {[%clk 0:00:09]} 31. Bc5 {[%clk 0:00:53]}  Ree2 {[%clk 0:00:08]} 32. Rae1 {[%clk 0:00:47]}  Qe6 {[%clk 0:00:06]} 33. Rxe2 {[%clk 0:00:46]}  Qxe2 {[%clk 0:00:06]} 34. Qe3 {[%clk 0:00:42]}  Qxe3 {[%clk 0:00:05]} 35. Bxe3 {[%clk 0:00:41]}  Bxa4 {[%clk 0:00:06]} 36. Bc5 {[%clk 0:00:41]}  Bc6 {[%clk 0:00:06]} 37. Re1 {[%clk 0:00:41]}  a5 {[%clk 0:00:06]} 38. Re7 {[%clk 0:00:38]}  a4 {[%clk 0:00:06]} 39. b5 {[%clk 0:00:36]}  Bxb5 {[%clk 0:00:05]} 40. Rxb7 {[%clk 0:00:36]}  Rxc5 {[%clk 0:00:04]} 41. Ra7 {[%clk 0:00:35]}  Rc1+ {[%clk 0:00:04]} 42. Kh2 {[%clk 0:00:35]}  Ra1 {[%clk 0:00:05]} 43. Kg3 {[%clk 0:00:35]}  a3 {[%clk 0:00:05]} 44. Kf4 {[%clk 0:00:35]}  a2 {[%clk 0:00:06]} 45. Kf5 {[%clk 0:00:34]}  Bc4 {[%clk 0:00:06]} 46. Kf4 {[%clk 0:00:34]}  Rc1 {[%clk 0:00:06]} 47. f3 {[%clk 0:00:32]}  a1=Q {[%clk 0:00:06]} 0-1


[Site "https://www.chess.com"]